bitfinex-derivatives/quotes_ETHF0:USTF0_20241017
["timestamp","ask_amount","ask_price","bid_price","bid_amount"]
[1729130366817,0.8782,2643.1,2642.8,3.58619]
[1729130366818,1.25656,2643.1,2642.8,3.58619]
[1729130367114,0.8782,2643.1,2642.8,3.2078]
[1729130367522,0.37838,2643.0,2642.8,3.2078]
[1729130367815,0.8782,2643.1,2642.6,0.37843]
[1729130367816,0.37839,2642.9,2642.6,0.37843]
[1729130368022,2.18999,2642.9,2642.5,3.58623]
[1729130368209,2.19,2642.9,2642.5,3.58623]
[1729130368415,0.3784,2642.8,2642.5,3.58623]
[1729130369135,1.8116,2642.9,2642.5,3.2078]
[1729130369512,0.37842,2642.7,2642.5,3.58624]
[1729130370116,1.8116,2642.9,2642.5,3.2078]
[1729130370421,0.8782,2643.1,2642.5,3.2078]
[1729130370617,1.8117,2643.1,2642.5,3.2078]
[1729130371222,0.37839,2642.9,2642.7,0.3784]
[1729130371424,0.37838,2643.0,2642.7,0.3784]
[1729130371617,0.37837,2643.0,2642.7,0.3784]
[1729130371817,0.37839,2642.9,2642.7,0.3784]
[1729130372119,1.8117,2643.1,2642.5,3.2078]
[1729130372314,2.19007,2643.1,2642.8,0.3784]
[1729130372526,0.37838,2643.0,2642.7,0.37841]
[1729130372715,0.37838,2643.0,2642.7,0.3784]
[1729130373826,2.19006,2643.1,2642.8,0.37839]
[1729130374623,2.19006,2643.1,2642.7,0.3784]
[1729130374821,1.8117,2643.1,2642.7,0.3784]
[1729130375022,2.19007,2643.1,2642.7,0.3784]
[1729130375225,3.2078,2644.0,2643.0,3.2078]
[1729130375422,1.8429,2643.8,2643.1,0.9136]
[1729130375734,0.37828,2643.7,2643.2,0.37833]
[1729130375925,0.37827,2643.7,2643.2,0.37833]
[1729130376228,0.37827,2643.7,2643.3,0.37833]
[1729130376929,1.8429,2643.8,2643.1,0.9136]
[1729130377116,0.37827,2643.7,2643.3,0.37832]
[1729130377521,1.8429,2643.8,2643.5,0.3783]
[1729130378231,0.1957151,2644.0,2643.9,0.37824]
[1729130378420,0.19117518,2644.9,2643.9,6.4424]
[1729130378733,0.37815,2644.6,2644.1,3.2078]
[1729130378938,2.66,2644.9,2644.1,3.2078]
[1729130379231,0.8857,2644.5,2644.1,3.2078]
[1729130379429,0.8857,2644.5,2644.2,0.3782]
[1729130379622,0.8857,2644.5,2644.1,3.2078]
[1729130379822,0.8857,2644.5,2644.2,0.3782]
[1729130380020,0.8857,2644.5,2644.3,0.37818]
[1729130380223,0.8857,2644.5,2644.1,3.2078]
[1729130380425,0.3781,2644.9,2644.3,0.37818]
[1729130380733,1.29481,2644.9,2644.4,3.58596]
[1729130380931,0.9167,2644.9,2644.5,0.37815]
[1729130381133,0.9167,2644.9,2644.7,3.2078]
[1729130381435,1.29481,2644.9,2644.7,3.2078]
[1729130381621,0.9167,2644.9,2644.7,3.2078]
[1729130382134,1.2948,2644.9,2644.7,3.2078]
[1729130385433,0.9167,2644.9,2644.7,3.2078]
[1729130385636,0.9167,2644.9,2644.4,3.2078]
[1729130385827,0.9066,2644.8,2644.4,3.58597]
[1729130386033,1.28472,2644.8,2644.5,2.66]
[1729130386228,1.28472,2644.8,2644.4,3.2078]
[1729130386229,0.37814,2644.7,2644.4,3.2078]
[1729130386739,0.9066,2644.8,2644.4,3.2078]
[1729130386935,1.8415,2644.8,2644.4,3.2078]
[1729130387139,0.37814,2644.7,2644.4,3.2078]
[1729130387742,1.8415,2644.8,2644.1,5.8678]
[1729130388042,1.8415,2644.8,2644.2,2.66]
[1729130388231,0.37815,2644.6,2644.4,2.66]
[1729130388433,2.03179297,2644.8,2644.4,2.66]
[1729130388632,0.37815,2644.6,2644.4,2.66]
[1729130388835,2.03179297,2644.8,2644.4,2.66]
[1729130389029,0.37815,2644.6,2644.4,5.8678]
[1729130389239,0.37813,2644.7,2644.4,3.2078]
[1729130389546,2.03179297,2644.8,2644.4,3.2078]
[1729130389840,1.09689297,2644.8,2644.2,2.66]
[1729130390035,0.37815,2644.6,2644.2,2.66]
[1729130390240,0.37815,2644.6,2644.2,3.0382]
[1729130390439,0.37815,2644.6,2644.2,2.66]
[1729130391134,0.37816,2644.5,2644.2,2.66]
[1729130391436,0.37814,2644.6,2644.4,3.2078]
[1729130391642,0.37815,2644.6,2644.4,3.2078]
[1729130391940,0.37816,2644.5,2644.4,3.2078]
[1729130392134,0.37815,2644.6,2644.4,3.2078]
[1729130393044,1.09689297,2644.8,2644.4,3.2078]
[1729130393235,0.37815,2644.6,2644.4,3.2078]
[1729130393940,1.09689297,2644.8,2644.4,3.2078]
[1729130394149,0.37815,2644.6,2644.4,3.2078]
[1729130394633,0.37816,2644.5,2644.4,3.2078]
[1729130395142,0.37815,2644.6,2644.4,3.2078]
[1729130395343,1.09689297,2644.8,2644.4,3.2078]
[1729130395344,0.37816,2644.5,2644.4,3.2078]
[1729130395844,1.09689297,2644.8,2644.2,5.8678]
[1729130396137,0.37816,2644.5,2644.2,5.8678]
[1729130396644,0.37817,2644.5,2644.2,5.8678]
[1729130396839,1.09689297,2644.8,2644.2,5.8678]
[1729130397143,0.37818,2644.4,2644.2,5.8678]
[1729130397438,2.04220297,2644.8,2644.2,5.8678]
[1729130397647,0.37819,2644.3,2644.2,3.2078]
[1729130398038,0.37819,2644.3,2644.2,6.9894]
[1729130398338,0.37819,2644.3,2644.2,3.2078]
[1729130398538,0.37819,2644.3,2644.2,6.9894]
[1729130400647,0.37819,2644.3,2644.2,9.6494]
[1729130400839,0.37819,2644.3,2644.2,3.2078]
[1729130401038,0.37818,2644.4,2644.2,13.36759]
[1729130401242,0.37818,2644.4,2644.2,6.24599]
[1729130401442,0.37818,2644.4,2644.2,10.0276]
[1729130401745,1.09689297,2644.8,2644.3,3.7816]
[1729130401947,1.09689297,2644.8,2644.2,6.24599]
[1729130401948,0.37818,2644.4,2644.2,6.24599]
[1729130402548,0.37817,2644.5,2644.3,3.7816]
[1729130402846,0.37816,2644.5,2644.3,0.37818]
[1729130403047,0.37816,2644.5,2644.2,6.24599]
[1729130403342,0.37818,2644.4,2644.2,6.24599]
[1729130403545,0.37819,2644.4,2644.2,5.8678]
[1729130403740,0.37818,2644.4,2644.2,5.8678]
[1729130404041,0.94538,2644.6,2644.2,3.2078]
[1729130404345,1.31619,2644.3,2644.2,3.2078]
[1729130405342,4.85789297,2644.8,2644.2,3.2078]
[1729130405343,2.04219297,2644.8,2644.2,3.2078]
[1729130405543,0.9622,2644.5,2644.2,5.8678]
[1729130405746,0.9066,2644.8,2644.2,5.8678]
[1729130405933,1.8862,2644.9,2644.6,3.2078]
[1729130406337,1.8862,2644.9,2644.8,2.66]
[1729130406746,0.9622,2644.9,2644.8,2.66]
[1729130407140,0.9622,2644.9,2644.7,1.26272]
[1729130407641,0.9622,2644.9,2644.8,0.37811]
[1729130407835,0.18938835,2645.2,2644.7,0.8846]
[1729130408038,0.9166,2645.4,2645.0,2.66]
[1729130408242,0.9166,2645.4,2645.1,0.8803]
[1729130408243,0.37805,2645.3,2645.1,0.8803]
[1729130408535,0.37805,2645.3,2644.9,3.2078]
[1729130408536,0.37804,2645.3,2644.9,3.2078]
[1729130408751,3.2078,2645.1,2644.4,3.2078]
[1729130409045,2.66,2645.2,2644.0,0.96951496]
[1729130409046,3.2078,2644.7,2644.1,4.1119]
[1729130409240,0.37819,2644.3,2644.1,4.1119]
[1729130409442,0.3782,2644.2,2644.1,4.1119]
[1729130409643,0.3782,2644.2,2644.1,3.2078]
[1729130409843,0.3782,2644.2,2644.1,6.9894]
[1729130410040,0.3782,2644.2,2644.1,3.2078]
[1729130410235,3.2078,2644.4,2643.8,3.2078]
[1729130410436,0.37824,2643.9,2643.8,3.2078]
[1729130411038,0.9166,2644.1,2643.8,3.2078]
[1729130411243,0.37823,2644.0,2643.9,2.66]
[1729130412251,0.9166,2644.1,2643.8,3.2078]
[1729130412549,0.37824,2643.9,2643.8,3.2078]
[1729130415239,0.37823,2644.0,2643.8,9.6502]
[1729130415439,0.37823,2644.0,2643.8,5.8678]
[1729130415644,0.37824,2643.9,2643.8,3.2078]
[1729130416148,0.9166,2644.1,2643.7,0.8853]
[1729130416352,0.37827,2643.7,2643.6,3.596]
[1729130416543,0.9421,2644.0,2643.6,6.8038]
[1729130416745,0.9166,2644.1,2643.8,2.66]
[1729130416939,2.22669415,2644.5,2643.6,4.1438]
[1729130416940,0.3782,2644.2,2644.0,2.66]
[1729130417244,0.3782,2644.3,2644.0,6.4424]
[1729130417446,0.9625,2644.7,2644.2,3.2078]
[1729130417647,0.9523,2644.6,2644.3,2.66]
[1729130417847,0.9613,2644.9,2644.4,0.9702]
[1729130418053,0.37816,2644.5,2644.4,0.9702]
[1729130418243,1.9136,2644.9,2644.4,0.9702]
[1729130418443,0.37812,2644.8,2644.6,3.2078]
[1729130418650,0.9523,2644.9,2644.6,3.58594]
[1729130418854,5.04478,2645.4,2644.6,3.58594]
[1729130418855,0.9625,2645.3,2644.7,2.66]
[1729130419050,0.3781,2645.0,2644.7,3.03813]
[1729130419250,1.9148,2645.3,2644.7,2.66]
[1729130419654,1.9148,2645.3,2644.9,3.2078]
[1729130419851,0.37809,2645.0,2644.9,3.2078]
[1729130420952,1.9148,2645.3,2644.9,3.2078]
[1729130421157,0.9523,2645.3,2645.0,0.37807]
[1729130421448,0.9523,2645.3,2645.0,4.0883]
[1729130421449,0.37806,2645.2,2645.0,4.0883]
[1729130421655,0.9523,2645.3,2645.0,4.0883]
[1729130422140,0.9523,2645.3,2645.0,3.2078]
[1729130422340,0.37807,2645.1,2645.0,3.2078]
[1729130422558,0.37813,2644.7,2644.6,3.2078]
[1729130422759,0.37817,2644.4,2644.3,0.9338]
[1729130423257,0.37817,2644.4,2644.3,4.7154]
[1729130423450,0.9352,2644.6,2644.0,6.24602]
[1729130423650,0.3782,2644.3,2644.0,6.24602]
[1729130423853,0.9352,2644.6,2644.0,6.24602]
[1729130423854,0.37821,2644.1,2644.0,5.8678]
[1729130424054,0.9454,2644.5,2644.0,5.8678]
[1729130424358,0.37821,2644.1,2644.0,5.8678]
[1729130424661,0.37821,2644.1,2644.0,3.2078]
[1729130424862,0.37828,2643.7,2643.6,3.2078]
[1729130425046,5.8678,2644.1,2643.4,0.899]
[1729130425047,0.9095,2644.0,2643.4,0.899]
[1729130425247,0.3783,2643.5,2643.4,0.899]
[1729130425450,1.88082,2643.9,2643.2,3.2078]
[1729130425451,0.37833,2643.3,2643.2,3.2078]
[1729130425652,1.88082,2643.9,2643.2,3.2078]
[1729130425856,0.37833,2643.3,2643.2,3.2078]
[1729130426044,5.08862,2643.9,2643.2,3.2078]
[1729130426250,0.37833,2643.4,2643.3,2.66]
[1729130426454,0.37831,2643.5,2643.3,3.03833]
[1729130426642,0.37831,2643.5,2643.3,2.66]
[1729130426643,0.3783,2643.5,2643.3,2.66]
[1729130426846,0.37831,2643.4,2643.3,2.66]
[1729130427047,0.37833,2643.3,2643.2,3.2078]
[1729130427249,0.94576,2643.5,2642.9,3.2078]
[1729130427546,6.9668,2643.6,2642.5,3.2078]
[1729130427547,0.37843,2642.6,2642.5,3.2078]
[1729130428152,0.37842,2642.7,2642.5,3.58624]
[1729130428454,0.9704,2642.9,2642.5,3.58624]
[1729130428455,0.3784,2642.8,2642.5,3.58623]
[1729130428659,0.3784,2642.8,2642.6,0.37842]
[1729130428660,0.37841,2642.8,2642.6,0.37842]
[1729130428961,0.37843,2642.7,2642.5,3.58624]
[1729130429358,0.37843,2642.6,2642.5,3.2078]
[1729130429562,4.57639,2642.9,2642.1,0.3785]
[1729130429757,0.9704,2642.9,2642.2,5.8678]
[1729130429959,0.37845,2642.5,2642.2,5.8678]
[1729130430156,0.9704,2642.9,2642.2,5.8678]
[1729130430348,0.37846,2642.5,2642.2,5.8678]
[1729130430555,0.3784,2642.8,2642.2,5.8678]
[1729130430754,0.37846,2642.4,2642.2,6.24628]
[1729130431047,0.9704,2642.9,2642.2,5.8678]
[1729130431251,0.37847,2642.4,2642.2,5.8678]
[1729130431458,0.9704,2642.9,2642.2,5.8678]
[1729130431459,0.37847,2642.3,2642.2,5.8678]
[1729130431665,0.37847,2642.3,2642.2,3.2078]
[1729130433558,0.37847,2642.4,2642.2,9.6526]
[1729130433762,0.37847,2642.3,2642.2,5.8678]
[1729130434153,0.37847,2642.4,2642.2,9.6526]
[1729130434360,0.37847,2642.3,2642.2,3.2078]
[1729130434863,0.94602,2642.8,2642.2,3.2078]
[1729130435251,0.37847,2642.3,2642.2,3.2078]
[1729130439367,0.37847,2642.4,2642.2,3.2078]
[1729130439559,4.1076,2642.7,2642.2,3.2078]
[1729130439960,0.37847,2642.3,2642.2,3.2078]
[1729130440262,0.37847,2642.4,2642.2,3.58629]
[1729130440569,0.37848,2642.3,2642.0,3.03851]
[1729130440863,0.37847,2642.4,2642.0,2.66]
[1729130441052,4.1076,2642.7,2642.2,0.37848]
[1729130441258,0.9704,2642.9,2642.5,2.66]
[1729130441656,0.9704,2642.9,2642.5,0.37844]
[1729130441864,0.9704,2642.9,2642.3,0.9683]
[1729130442368,0.37843,2642.6,2642.3,1.34676]
[1729130442567,0.37843,2642.6,2642.2,5.8678]
[1729130442873,0.37843,2642.6,2642.3,0.37846]
[1729130443163,0.37844,2642.6,2642.3,0.37847]
[1729130443353,0.37844,2642.6,2642.4,0.37846]
[1729130443564,0.37844,2642.6,2642.3,0.37846]
[1729130443862,0.37845,2642.5,2642.3,0.37846]
[1729130444059,0.37844,2642.6,2642.3,0.37846]
[1729130444264,0.37844,2642.6,2642.4,0.37845]
[1729130444671,0.37845,2642.5,2642.2,3.58627]
[1729130444864,3.2078,2642.7,2642.2,3.2078]
[1729130445362,0.37845,2642.5,2642.3,0.37846]
[1729130445563,0.37843,2642.6,2642.3,0.37846]
[1729130445871,0.37845,2642.5,2642.3,0.37846]
[1729130446170,2.66,2642.6,2641.9,4.1761]
[1729130446356,0.37845,2642.5,2642.0,2.66]
[1729130446561,3.2078,2642.7,2642.3,0.37847]
[1729130446761,3.2078,2642.6,2642.0,2.66]
[1729130446969,0.37846,2642.4,2642.2,0.37848]
[1729130447173,0.37845,2642.5,2642.3,0.37846]
[1729130447568,0.37846,2642.4,2642.2,0.37848]
[1729130447765,0.37846,2642.4,2642.3,0.37847]
[1729130448068,3.2078,2642.6,2642.3,0.37847]
[1729130448069,0.37845,2642.5,2642.3,0.37847]
[1729130448262,3.58624,2642.6,2642.3,0.37846]
[1729130448468,0.37844,2642.5,2642.3,0.37846]
[1729130448660,3.2078,2642.6,2642.0,2.66]
[1729130448868,3.2078,2642.6,2642.3,0.37847]
[1729130449166,3.2078,2642.6,2642.0,2.66]
[1729130449570,0.37842,2642.7,2642.3,3.2078]
[1729130449868,0.37842,2642.7,2642.4,0.37845]
[1729130450073,0.9704,2642.9,2642.4,0.37845]
[1729130450464,0.37842,2642.7,2642.4,0.37845]
[1729130450667,0.37842,2642.7,2642.4,0.37846]
[1729130450866,0.37842,2642.7,2642.3,3.2078]
[1729130451173,0.9704,2642.9,2642.4,2.66]
[1729130451474,0.3784,2642.8,2642.6,0.37842]
[1729130452069,0.3784,2642.8,2642.5,1.27393]
[1729130452270,0.9704,2642.9,2642.5,0.8955]
[1729130452574,0.3784,2642.8,2642.6,0.37842]
[1729130453066,1.34879,2642.9,2642.5,0.8955]
[1729130453272,1.34879,2642.9,2642.6,0.37843]
[1729130453273,0.9704,2642.9,2642.6,0.37843]
[1729130453469,0.37841,2642.8,2642.5,1.27393]
[1729130453770,0.37842,2642.7,2642.5,0.8955]
[1729130453962,0.9704,2642.9,2642.5,0.8955]
[1729130453963,0.37841,2642.8,2642.5,0.8955]
[1729130454271,0.9704,2642.9,2642.5,0.8955]
[1729130454472,0.37841,2642.8,2642.5,0.8955]
[1729130454668,1.3488,2642.9,2642.5,0.8955]
[1729130455068,1.3488,2642.9,2642.7,0.37841]
[1729130455273,1.3488,2642.9,2642.6,0.37842]
[1729130455471,1.3488,2642.9,2642.5,0.8955]
[1729130455673,1.3488,2642.9,2642.7,0.37841]
[1729130455866,0.9704,2642.9,2642.8,0.3784]
[1729130457168,1.098,2643.5,2642.8,10.73001]
[1729130457368,0.8612,2643.4,2643.0,3.2078]
[1729130457570,0.8612,2643.4,2643.2,0.37833]
[1729130457973,1.23952,2643.4,2643.1,1.26685]
[1729130458376,0.8612,2643.4,2643.2,0.37834]
[1729130460074,1.2639,2643.6,2643.3,3.2078]
[1729130460075,0.8856,2643.6,2643.3,3.2078]
[1729130460282,6.05803035,2644.5,2643.4,2.66]
[1729130460473,0.37828,2643.7,2643.3,3.58612]
[1729130460780,2.66,2643.8,2643.3,3.2078]
[1729130460980,1.7894,2643.7,2643.3,3.2078]
[1729130461172,2.16768,2643.7,2643.3,3.2078]
[1729130461367,1.7894,2643.7,2643.3,3.2078]
[1729130461666,2.66,2644.0,2643.7,0.37827]
[1729130461667,0.37823,2644.0,2643.7,0.37827]
[1729130461866,0.9082,2644.1,2644.0,0.37823]
[1729130462065,0.9082,2644.1,2643.6,4.1535]
[1729130462066,0.9082,2644.1,2643.9,0.37824]
[1729130462266,0.9082,2644.1,2644.0,0.37823]
[1729130462472,0.9082,2644.1,2643.8,0.8681]
[1729130462672,0.37819,2644.3,2644.0,0.37823]
[1729130462980,1.8169,2644.4,2643.8,0.8681]
[1729130463376,0.9082,2644.4,2644.0,3.2078]
[1729130463575,1.28637,2644.4,2644.1,0.37821]
[1729130463880,0.9082,2644.4,2644.1,0.3782]
[1729130464079,0.30751475,2644.5,2644.0,3.2078]
[1729130464270,0.9469,2644.7,2644.1,2.66]
[1729130464475,0.3781,2645.0,2644.6,0.37814]
[1729130465175,40.8,2645.1,2644.5,1.7981]
[1729130465473,0.37812,2644.8,2644.5,1.7981]
[1729130465878,0.3781,2644.9,2644.5,2.17625]
[1729130466079,0.37814,2644.7,2644.5,1.7981]
[1729130466477,0.94519,2645.1,2644.5,1.7981]
[1729130466677,0.37814,2644.6,2644.5,1.7981]
[1729130466974,0.37813,2644.7,2644.5,1.7981]
[1729130467181,5.8678,2645.2,2644.5,1.7981]
[1729130467381,0.37812,2644.8,2644.5,1.7981]
[1729130467583,0.37812,2644.8,2644.5,2.17626]
[1729130468881,4.1061,2645.1,2644.5,2.17626]
[1729130469277,0.37811,2644.9,2644.5,2.17626]
[1729130469477,0.37811,2644.8,2644.5,2.17626]
[1729130469875,0.37811,2644.8,2644.5,1.7981]
[1729130470171,0.37814,2644.6,2644.4,3.2078]
[1729130470371,0.37816,2644.5,2644.4,3.2078]
[1729130470677,0.94529,2644.8,2644.1,0.8777]
[1729130470878,6.81308,2644.9,2644.1,0.8777]
[1729130470879,0.37819,2644.3,2644.1,0.8777]
[1729130471186,0.37823,2644.0,2643.9,3.2078]
[1729130471380,2.66,2644.4,2643.5,3.2078]
[1729130471381,3.5652,2644.2,2643.5,3.2078]
[1729130471584,3.5652,2644.2,2643.1,0.8921]
[1729130471585,0.94562,2643.9,2643.1,3.2078]
[1729130471888,0.37834,2643.2,2643.1,3.2078]
[1729130472082,0.94572,2643.6,2643.0,0.9163]
[1729130472386,0.37836,2643.1,2643.0,0.9163]
[1729130472685,0.37836,2643.2,2643.0,0.9163]
[1729130472982,0.37836,2643.1,2643.0,0.9163]
[1729130474075,0.37836,2643.1,2642.8,7.17699]
[1729130474386,0.37836,2643.1,2643.0,2.66]
[1729130475876,0.37839,2642.9,2642.8,3.2078]
[1729130476088,0.37843,2642.6,2642.5,0.8994]
[1729130476384,0.37843,2642.6,2642.1,0.9294]
[1729130476385,0.37849,2642.2,2642.1,0.9294]
[1729130476584,0.94614,2642.5,2641.9,5.8678]
[1729130476585,0.94614,2642.5,2641.9,6.7672]
[1729130476789,0.37852,2642.0,2641.9,6.7672]
[1729130476986,1.7857,2642.5,2641.9,6.7672]
[1729130477289,0.37849,2642.2,2642.1,2.66]
[1729130477981,1.7857,2642.5,2641.9,4.1072]
[1729130477982,2.73185,2642.5,2641.9,4.1072]
[1729130478188,0.9462,2642.3,2641.5,3.2078]
[1729130478387,0.37856,2641.7,2641.5,3.58638]
[1729130478587,0.37856,2641.7,2641.5,3.2078]
[1729130478980,0.37857,2641.6,2641.5,3.2078]
[1729130479586,0.94626,2642.1,2641.5,3.2078]
[1729130479786,0.37857,2641.6,2641.5,3.2078]
[1729130480191,3.2078,2641.7,2641.2,3.2078]
[1729130480483,3.27,2641.8,2641.0,0.37865]
[1729130480484,0.37863,2641.3,2641.0,0.37865]
[1729130481084,0.37865,2641.1,2640.9,3.2078]
[1729130481386,0.8692,2641.7,2640.9,3.2078]
[1729130481387,0.37866,2641.0,2640.9,3.2078]
[1729130485386,0.37866,2641.0,2640.1,4.9591]
[1729130485387,9.7864,2641.0,2640.1,4.9591]
[1729130485588,0.37865,2641.1,2640.7,0.3787]
[1729130485983,2.012,2641.2,2640.6,6.4778]
[1729130486187,0.916,2641.2,2640.6,6.4778]
[1729130486387,0.37862,2641.3,2640.9,3.58647]
[1729130486587,0.37861,2641.4,2640.9,3.58647]
[1729130486783,0.37861,2641.4,2641.0,0.37866]
[1729130486989,0.37861,2641.4,2640.9,3.58646]
[1729130487182,0.37861,2641.4,2640.9,3.58647]
[1729130487491,0.37859,2641.5,2641.1,0.37864]
[1729130487889,5.2089,2641.6,2641.0,0.37865]
[1729130488094,0.37859,2641.5,2640.9,3.2078]
[1729130488304,5.2089,2641.6,2640.9,3.2078]
[1729130488305,0.37862,2641.3,2640.9,3.2078]
[1729130488495,0.37863,2641.3,2640.9,3.2078]
[1729130488794,0.37862,2641.3,2640.9,3.2078]
[1729130488991,0.37861,2641.4,2640.9,3.58646]
[1729130489186,0.37862,2641.3,2640.9,3.58646]
[1729130489495,0.37861,2641.4,2640.9,3.58646]
[1729130489698,0.37862,2641.3,2640.9,3.58646]
[1729130490594,1.30969,2641.5,2641.1,0.37864]
[1729130490796,0.9311,2641.5,2640.9,3.2078]
[1729130491210,0.37864,2641.2,2640.9,3.2078]
[1729130492197,0.9311,2641.5,2640.9,3.2078]
[1729130492394,0.37865,2641.1,2640.9,3.2078]
[1729130493286,3.2078,2641.4,2640.8,0.37868]
[1729130493287,0.37864,2641.2,2640.8,0.37868]
[1729130493695,0.37862,2641.3,2640.9,3.2078]
[1729130493895,3.2078,2641.4,2640.9,3.2078]
[1729130494100,3.2078,2641.4,2641.2,0.37862]
[1729130495790,0.37859,2641.5,2641.2,0.37862]
[1729130495992,0.9051,2641.6,2641.0,3.27]
[1729130496192,0.9051,2641.6,2641.3,0.37861]
[1729130496193,1.28368,2641.6,2641.3,0.37861]
[1729130496397,1.28368,2641.6,2641.2,3.2078]
[1729130496706,0.37859,2641.5,2641.2,3.58642]
[1729130496996,0.9051,2641.6,2641.2,3.2078]
[1729130497401,0.9051,2641.6,2641.4,0.37859]
[1729130497593,0.9051,2641.6,2641.3,0.3786]
[1729130497791,0.8692,2641.7,2641.3,0.3786]
[1729130498000,0.37857,2641.6,2641.3,0.3786]
[1729130499013,0.8692,2641.7,2641.2,3.2078]
[1729130499505,0.8692,2641.7,2641.2,3.58642]
[1729130499711,0.37859,2641.5,2641.2,3.58642]
[1729130499910,0.8692,2641.7,2641.2,3.2078]
[1729130500114,0.37859,2641.5,2641.2,3.2078]
[1729130500413,0.37859,2641.5,2641.2,3.58643]
[1729130500603,0.8692,2641.7,2641.2,3.2078]
[1729130500801,0.37859,2641.5,2641.2,3.58643]
[1729130501206,0.8692,2641.7,2641.2,3.2078]
[1729130501414,0.3786,2641.4,2641.2,3.2078]
[1729130501614,0.3786,2641.5,2641.2,3.2078]
[1729130501817,0.37861,2641.4,2641.2,3.2078]
[1729130502317,4.8824,2641.3,2640.7,0.8936]
[1729130502517,2.66,2641.2,2640.6,3.2078]
[1729130502719,2.66,2640.8,2640.3,0.8531]
[1729130503014,3.2078,2640.9,2640.2,4.151]
[1729130503015,0.37876,2640.3,2640.2,4.151]
[1729130503212,2.66,2640.6,2640.2,4.151]
[1729130503213,0.37872,2640.6,2640.2,4.151]
[1729130503408,0.37875,2640.4,2640.2,4.151]
[1729130503608,2.7273,2640.7,2640.2,4.52977]
[1729130503813,0.37875,2640.4,2640.2,4.52977]
[1729130504623,0.37873,2640.5,2640.3,0.37876]
[1729130504918,0.37872,2640.6,2640.2,4.52977]
[1729130505117,0.37874,2640.5,2640.2,4.52977]
[1729130505414,2.7273,2640.7,2640.2,4.52977]
[1729130505620,0.37875,2640.4,2640.2,4.52977]
[1729130505918,0.37875,2640.4,2640.2,1.32197]
[1729130506415,2.7273,2640.7,2640.2,0.9432]
[1729130506720,0.37873,2640.5,2640.3,0.37875]
[1729130506920,0.37875,2640.4,2640.2,4.52976]
[1729130507115,2.7273,2640.7,2640.2,4.52976]
[1729130507116,2.7273,2640.7,2640.2,3.2078]
[1729130507310,0.37876,2640.3,2640.2,3.2078]
[1729130507909,10.16596,2640.3,2640.2,3.2078]
[1729130508824,0.37878,2640.2,2639.8,3.58662]
[1729130509218,0.37877,2640.3,2639.8,3.2078]
[1729130509418,0.37877,2640.3,2639.9,0.3788]
[1729130509615,0.37877,2640.3,2640.0,0.3788]
[1729130510020,0.37877,2640.2,2639.9,0.37881]
[1729130510214,1.095,2640.5,2639.8,3.2078]
[1729130510420,0.37876,2640.3,2639.8,3.2078]
[1729130510722,0.37878,2640.2,2639.9,0.37881]
[1729130511020,0.37879,2640.1,2639.8,3.58663]
[1729130511225,1.28738745,2640.5,2639.8,3.2078]
[1729130511410,0.37877,2640.2,2639.9,0.37881]
[1729130512222,2.7273,2640.7,2639.8,6.4878]
[1729130512419,0.37873,2640.5,2640.2,0.37877]
[1729130512925,2.7273,2640.7,2639.8,6.4878]
[1729130513223,3.8223,2640.7,2640.1,3.2078]
[1729130513422,0.37872,2640.6,2640.3,0.37875]
[1729130513922,4.20101,2640.7,2640.3,0.37875]
[1729130514416,3.8223,2640.7,2640.3,0.37875]
[1729130514621,0.37872,2640.6,2640.3,0.37875]
[1729130515612,2.7273,2640.7,2640.2,0.9197]
[1729130515819,1.7833,2640.7,2640.2,0.9197]
[1729130516125,1.7833,2640.7,2640.4,0.37873]
[1729130516326,1.7833,2640.7,2640.5,0.37873]
[1729130516720,4.3028,2640.9,2640.5,0.37873]
[1729130517024,3.58648,2640.9,2640.6,1.34822496]
[1729130517424,3.58648,2640.9,2640.7,0.96951496]
[1729130517723,3.2078,2640.9,2640.4,3.2078]
[1729130517924,3.2078,2640.9,2640.6,0.37871]
[1729130518120,3.2078,2640.9,2640.4,3.2078]
[1729130518520,3.2078,2640.9,2640.7,0.37869]
[1729130518717,3.58647,2640.9,2640.6,0.37871]
[1729130519018,3.2078,2640.9,2640.6,0.37871]
[1729130519223,0.37867,2641.0,2640.6,0.37871]
[1729130519528,1.095,2641.1,2640.6,0.37871]
[1729130519529,4.3028,2641.1,2640.6,0.37871]
[1729130519726,0.37867,2641.0,2640.6,0.37871]
[1729130519924,1.47365,2641.1,2640.8,0.37868]
[1729130520221,0.9276,2641.2,2640.5,4.17731496]
[1729130520422,5.0578,2641.4,2641.2,0.37862]
[1729130520423,0.9087,2641.4,2641.2,0.37862]
[1729130520629,0.9087,2641.4,2640.9,0.96951496]
[1729130520822,1.9686,2641.7,2640.9,2.78971496]
[1729130520823,1.095,2641.6,2640.9,2.78971496]
[1729130521128,1.095,2641.6,2641.3,0.37861]
[1729130521129,1.47358,2641.6,2641.3,0.37861]
[1729130521427,1.9686,2641.7,2641.1,5.63158741]
[1729130521727,1.9686,2641.7,2641.2,2.41097527]
[1729130521922,1.9686,2641.7,2641.3,0.37861]
[1729130522126,1.9686,2641.7,2641.2,1.34813496]
[1729130522321,0.37858,2641.6,2641.2,0.96951496]
[1729130522826,0.37858,2641.6,2641.2,1.34814496]
[1729130523028,1.25217,2641.7,2641.2,1.34814496]